Workbook

Sheet 읍면동별 세대 및 인구
A1: 여수시 읍면동별 세대 및 인구
A2: 작성기준 : 2014.6.30. 현재 | J2: (단위 : 세대, 명)
A3: 구 분 | B3: 세대수1) | C3: 합 계 | F3: 한국인 | I3: 외국인
C4: 계 | D4: 남 | E4: 여 | F4: 계 | G4: 남 | H4: 여 | I4: 계 | J4: 남 | K4: 여
A5: 2010년말 | B5: 110,613 | C5: 293,488 | D5: 148,455 | E5: 145,033 | F5: 293,488 | G5: 148,455 | H5: 145,033 | I5: 2,390 | J5: 1,430 | K5: 960
A6: 2011년말 | B6: 111,921 | C6: 295,538 | D6: 149,827 | E6: 145,711 | F6: 292,750 | G6: 148,115 | H6: 144,635 | I6: 2,788 | J6: 1,712 | K6: 1,076
A7: 2012년말 | B7: 112,907 | C7: 295,215 | D7: 149,735 | E7: 145,480 | F7: 292,217 | G7: 147,922 | H7: 144,295 | I7: 2,998 | J7: 1,813 | K7: 1,185
A8: 2013년말 | B8: 114,364 | C8: 294,565 | D8: 149,547 | E8: 145,018 | F8: 291,366 | G8: 147,539 | H8: 143,827 | I8: 3,199 | J8: 2,008 | K8: 1,191
A9: 2014.1월 | B9: 114,496 | C9: 294,665 | D9: 149,647 | E9: 145,018 | F9: 291,458 | G9: 147,631 | H9: 143,827 | I9: 3,207 | J9: 2,016 | K9: 1,191
A10: 2014.2월 | B10: 114,573 | C10: 294,232 | D10: 149,403 | E10: 144,829 | F10: 291,044 | G10: 147,406 | H10: 143,638 | I10: 3,188 | J10: 1,997 | K10: 1,191
A11: 2014.3월 | B11: 114,710 | C11: 294,104 | D11: 149,347 | E11: 144,757 | F11: 290,927 | G11: 147,374 | H11: 143,553 | I11: 3,177 | J11: 1,973 | K11: 1,204
A12: 2014.4월 | B12: 114,925 | C12: 294,047 | D12: 149,323 | E12: 144,724 | F12: 290,847 | G12: 147,329 | H12: 143,518 | I12: 3,200 | J12: 1,994 | K12: 1,206
A13: 2014.5월 | B13: 115,144 | C13: 294,196 | D13: 149,450 | E13: 144,746 | F13: 290,899 | G13: 147,367 | H13: 143,532 | I13: 3,297 | J13: 2,083 | K13: 1,214
A14: 2014.6월 | B14: 115,235 | C14: =D14+E14 -> 294,106 | D14: =SUM(D15:D41) -> 149,454 | E14: =SUM(E15:E41) -> 144,652 | F14: =G14+H14 -> 290,768 | G14: =SUM(G15:G41) -> 147,333 | H14: =SUM(H15:H41) -> 143,435 | I14: =J14+K14 -> 3,338 | J14: =SUM(J15:J41) -> 2,121 | K14: =SUM(K15:K41) -> 1,217
A15: 돌산읍 | B15: 6,315 | C15: =SUM(D15:E15) -> 15,224 | D15: =G15+J15 -> 7,898 | E15: =H15+K15 -> 7,326 | F15: =SUM(G15:H15) -> 14,703 | G15: 7,476 | H15: 7,227 | I15: =SUM(J15:K15) -> 521 | J15: 422 | K15: 99
A16: 소라면 | B16: 6,812 | C16: =SUM(D16:E16) -> 17,317 | D16: =G16+J16 -> 8,816 | E16: 8,501 | F16: =SUM(G16:H16) -> 17,223 | G16: 8,797 | H16: 8,426 | I16: =SUM(J16:K16) -> 94 | J16: 19 | K16: 75
A17: 율촌면 | B17: 3,338 | C17: 7,361 | D17: 3,785 | E17: 3,576 | F17: 7,226 | G17: 3,697 | H17: 3,529 | I17: 135 | J17: 88 | K17: 47
A18: 화양면 | B18: 3,405 | C18: 7,370 | D18: 3,793 | E18: 3,577 | F18: 7,246 | G18: 3,720 | H18: 3,526 | I18: 124 | J18: 73 | K18: 51
A19: 남면 | B19: 1,768 | C19: 3,407 | D19: 1,723 | E19: 1,684 | F19: 3,350 | G19: 1,677 | H19: 1,673 | I19: 57 | J19: 46 | K19: 11
A20: 화정면 | B20: 1,327 | C20: 2,578 | D20: 1,253 | E20: 1,325 | F20: 2,536 | G20: 1,222 | H20: 1,314 | I20: 42 | J20: 31 | K20: 11
A21: 삼산면 | B21: 1,286 | C21: 2,624 | D21: 1,490 | E21: 1,134 | F21: 2,520 | G21: 1,394 | H21: 1,126 | I21: 104 | J21: 96 | K21: 8
A22: 동문동 | B22: 2,607 | C22: 5,213 | D22: 2,656 | E22: 2,557 | F22: 5,160 | G22: 2,625 | H22: 2,535 | I22: 53 | J22: 31 | K22: 22
A23: 한려동 | B23: 1,816 | C23: 3,689 | D23: 1,857 | E23: 1,832 | F23: 3,673 | G23: 1,853 | H23: 1,820 | I23: 16 | J23: 4 | K23: 12
A24: 중앙동 | B24: 2,652 | C24: 5,952 | D24: 3,005 | E24: 2,947 | F24: 5,847 | G24: 2,930 | H24: 2,917 | I24: 105 | J24: 75 | K24: 30
A25: 충무동 | B25: 2,400 | C25: 4,997 | D25: 2,579 | E25: 2,418 | F25: 4,966 | G25: 2,561 | H25: 2,405 | I25: 31 | J25: 18 | K25: 13
A26: 광림동 | B26: 3,463 | C26: 7,693 | D26: 3,997 | E26: 3,696 | F26: 7,635 | G26: 3,981 | H26: 3,654 | I26: 58 | J26: 16 | K26: 42
A27: 서강동 | B27: 2,044 | C27: 4,618 | D27: 2,318 | E27: 2,300 | F27: 4,580 | G27: 2,302 | H27: 2,278 | I27: 38 | J27: 16 | K27: 22
A28: 대교동 | B28: 3,419 | C28: 7,146 | D28: 3,752 | E28: 3,394 | F28: 6,919 | G28: 3,562 | H28: 3,357 | I28: 227 | J28: 190 | K28: 37
A29: 국동 | B29: 5,108 | C29: 12,792 | D29: 6,531 | E29: 6,261 | F29: 12,557 | G29: 6,343 | H29: 6,214 | I29: 235 | J29: 188 | K29: 47
A30: 월호동 | B30: 2,893 | C30: 8,366 | D30: 4,293 | E30: 4,073 | F30: 8,131 | G30: 4,077 | H30: 4,054 | I30: 235 | J30: 216 | K30: 19
A31: 여서동 | B31: 8,076 | C31: 22,959 | D31: 11,418 | E31: 11,541 | F31: 22,837 | G31: 11,360 | H31: 11,477 | I31: 122 | J31: 58 | K31: 64
A32: 문수동 | B32: 8,839 | C32: 23,591 | D32: 11,787 | E32: 11,804 | F32: 23,415 | G32: 11,711 | H32: 11,704 | I32: 176 | J32: 76 | K32: 100
A33: 미평동 | B33: 5,365 | C33: 13,596 | D33: 6,992 | E33: 6,604 | F33: 13,487 | G33: 6,951 | H33: 6,536 | I33: 109 | J33: 41 | K33: 68
A34: 둔덕동 | B34: 3,881 | C34: 11,527 | D34: 5,777 | E34: 5,750 | F34: 11,446 | G34: 5,746 | H34: 5,700 | I34: 81 | J34: 31 | K34: 50
A35: 만덕동 | B35: 3,339 | C35: 8,755 | D35: 4,374 | E35: 4,381 | F35: 8,616 | G35: 4,286 | H35: 4,330 | I35: 139 | J35: 88 | K35: 51
A36: 쌍봉동 | B36: 13,030 | C36: 37,067 | D36: 18,814 | E36: 18,253 | F36: 36,874 | G36: 18,737 | H36: 18,137 | I36: 193 | J36: 77 | K36: 116
A37: 시전동 | B37: 8,384 | C37: 24,259 | D37: 12,058 | E37: 12,201 | F37: 24,138 | G37: 12,018 | H37: 12,120 | I37: 121 | J37: 40 | K37: 81
A38: 여천동 | B38: 8,817 | C38: 23,035 | D38: 11,776 | E38: 11,259 | F38: 22,887 | G38: 11,714 | H38: 11,173 | I38: 148 | J38: 62 | K38: 86
A39: 주삼동 | B39: 2,890 | C39: 8,563 | D39: 4,348 | E39: 4,215 | F39: 8,523 | G39: 4,336 | H39: 4,187 | I39: 40 | J39: 12 | K39: 28
A40: 삼일동 | B40: 1,311 | C40: 3,121 | D40: 1,694 | E40: 1,427 | F40: 2,996 | G40: 1,587 | H40: 1,409 | I40: 125 | J40: 107 | K40: 18
A41: 묘도동 | B41: 559 | C41: 1,286 | D41: 670 | E41: 616 | F41: 1,277 | G41: 670 | H41: 607 | I41: 9 | J41: 0 | K41: 9
A42: 자료 : 민원지적과
A43: 주 : 1) 세대수에는 외국인 세대 제외

Sheet 혼인,이혼 현황
A1: 혼인, 이혼 현황
A2: 작성기준 : 2014.6.30. 현재 | C2: (단위 : 쌍)
A3: 구 분 | B3: 혼 인 | C3: 이 혼
A5: 2010년 | B5: 1,745 | C5: 657
A6: 2011년 | B6: 1,741 | C6: 655
A7: 2012년 | B7: 1,642 | C7: 613
A8: 2013년 | B8: 1,759 | C8: 576
A9: 2014. 1월 | B9: 181 | C9: 49
A10: 2014. 2월 | B10: 148 | C10: 58
A11: 2014. 3월 | B11: 154 | C11: 55
A12: 2014. 4월 | B12: 139 | C12: 45
A13: 2014. 5월 | B13: 187 | C13: 49
A14: 2014. 6월 | B14: 145 | C14: 49

Sheet 65세이상 인구(총괄)
A1: 65세이상 인구 현황(총괄)
A2: 작성기준 : 2014.6.30. 현재 | D2: (단위 : 명)
A3: 구 분 | B3: 계 | C3: 남 | D3: 여 | E3: 노령화 지수
A4: 2010년말 | B4: 36,601 | C4: 14,376 | D4: 22,225 | E4: 76.5
A5: 2011년말 | B5: 37,830 | C5: 15,023 | D5: 22,807 | E5: 82.0
A6: 2012년말 | B6: 39,671 | C6: 15,929 | D6: 23,742 | E6: 89.4
A7: 2013년말 | B7: 41,369 | C7: 16,775 | D7: 24,594 | E7: 96.8
A8: 2014. 1월 | B8: =SUM(C8:D8) -> 41,513 | C8: 16,867 | D8: 24,646 | E8: 97.6
A9: 2014. 2월 | B9: =SUM(C9:D9) -> 41,682 | C9: 16,950 | D9: 24,732 | E9: 98.7
A10: 2014. 3월 | B10: =SUM(C10:D10) -> 41,804 | C10: 17,012 | D10: 24,792 | E10: 99.3
A11: 2014. 4월 | B11: 41,923 | C11: 17,061 | D11: 24,862 | E11: 99.8
A12: 2014. 5월 | B12: 42,117 | C12: 17,158 | D12: 24,959 | E12: 100.7
A13: 2014. 6월 | B13: 42,237 | C13: 17,231 | D13: 25,006 | E13: 101.1
A14: 자료 : 민원지적과
A15: 주 : 노령화 지수 = (65세이상인구 / 0~14세 인구) * 100
